fUST/lending_fUST_20250911
["ID","MTS","AMOUNT","RATE_DAILY","PERIOD"]
[384822102,1757573445496,-237.61861701,0.00016712,2]
[384822103,1757573445505,-480.0,0.00016712,2]
[384822104,1757573445516,-480.0,0.00016712,2]
[384822105,1757573445526,-2070.44,0.00016712,2]
[384822106,1757573445535,-1516.77,0.00016712,2]
[384822107,1757573445546,-1674.47,0.00016712,2]
[384822108,1757573445555,-168.0,0.00016731,2]
[384822109,1757573445564,-480.0,0.00016986,2]
[384822110,1757573445574,-157.09891341,0.00016986,2]
[384822111,1757573445584,-157.0,0.00016986,2]
[384822112,1757573445595,-254.96474888,0.00016986,2]
[384822113,1757573445604,-157.0,0.00016986,2]
[384822114,1757573445613,-157.0,0.00016986,2]
[384822115,1757573445623,-157.0,0.00016986,2]
[384822116,1757573445633,-500.0,0.00016986,2]
[384822117,1757573445642,-157.0,0.00016986,2]
[384822118,1757573445652,-157.0,0.00016986,2]
[384822119,1757573445661,-157.0,0.00016986,2]
[384822120,1757573445671,-157.20263955,0.00016986,2]
[384822121,1757573445681,-157.0,0.00016986,2]
[384822122,1757573445690,-157.0,0.00016986,2]
[384822123,1757573445699,-556.7,0.00016986,2]
[384822124,1757573445709,-157.0,0.00016986,2]
[384822125,1757573445719,-247.77503244,0.00016986,2]
[384822126,1757573445728,-157.0,0.00016986,2]
[384822127,1757573445737,-157.0,0.00016986,2]
[384822128,1757573445746,-157.0,0.00016986,2]
[384822129,1757573445758,-157.0,0.00016986,2]
[384822130,1757573445767,-503.17,0.00016986,2]
[384822131,1757573445777,-157.0,0.00016986,2]
[384822132,1757573445788,-302.47220801,0.00016986,2]
[384822133,1757573445798,-158.77468404,0.00016986,2]
[384822134,1757573445808,-157.0,0.00016986,2]
[384822135,1757573445818,-480.0,0.00016986,2]
[384822136,1757573445828,-2202.37,0.00016986,2]
[384822137,1757573445839,-480.0,0.00016986,2]
[384822138,1757573445849,-480.0,0.00016986,2]
[384822139,1757573445858,-157.0,0.00016986,2]
[384822140,1757573445867,-157.0,0.00016986,2]
[384822141,1757573445875,-157.0,0.00016986,2]
[384822142,1757573445885,-500.0,0.00016986,2]
[384822143,1757573445894,-157.0,0.00016986,2]
[384822144,1757573445903,-2070.44,0.00016986,2]
[384822145,1757573445912,-1516.77,0.00016986,2]
[384822146,1757573445922,-1674.47,0.00016986,2]
[384822147,1757573445933,-168.0,0.00017153,2]
[384822148,1757573445942,-460.0,0.00017184,2]
[384822149,1757573445953,-864.0,0.00017226,2]
[384822150,1757573445964,-205.57504218,0.0001726,2]
[384822151,1757573445973,-157.0,0.0001726,2]
[384822152,1757573445983,-157.0,0.0001726,2]
[384822153,1757573445992,-157.0,0.0001726,2]
[384822154,1757573446001,-500.0,0.0001726,2]
[384822155,1757573446011,-157.0,0.0001726,2]
[384822156,1757573446020,-157.0,0.0001726,2]
[384822157,1757573446034,-164.24058408,0.0001726,2]
[384822158,1757573446048,-157.0,0.0001726,2]
[384822159,1757573446062,-157.0,0.0001726,2]
[384822160,1757573446076,-173.67,0.0001726,2]
[384822161,1757573446087,-157.0,0.0001726,2]
[384822162,1757573446101,-157.0,0.0001726,2]
[384822163,1757573446114,-157.0,0.0001726,2]
[384822164,1757573446127,-180.0,0.0001726,2]
[384822165,1757573446140,-157.0,0.0001726,2]
[384822166,1757573446153,-500.0,0.0001726,2]
[384822167,1757573446165,-157.0,0.0001726,2]
[384822168,1757573446178,-480.0,0.0001726,2]
[384822169,1757573446193,-556.7,0.0001726,2]
[384822170,1757573446206,-503.17,0.0001726,2]
[384822171,1757573446219,-480.0,0.0001726,2]
[384822172,1757573446231,-2202.37,0.0001726,2]
[384822174,1757573446243,-480.0,0.0001726,2]
[384822175,1757573446257,-614.34391163,0.0001726,2]
[384822176,1757573446269,-2070.44,0.0001726,2]
[384822177,1757573446283,-1516.77,0.0001726,2]
[384822178,1757573446293,-1674.47,0.0001726,2]
[384822179,1757573446306,-151.0,0.000174,2]
[384822180,1757573446318,-2750.21709188,0.00017408,2]
[384822183,1757573446331,-157.0,0.00017534,2]
[384822185,1757573446344,-158.31206507,0.00017534,2]
[384822187,1757573446357,-157.0,0.00017534,2]
[384822189,1757573446370,-500.0,0.00017534,2]
[384822190,1757573446383,-176.58173941,0.00017534,2]
[384822191,1757573446396,-157.0,0.00017534,2]
[384822192,1757573446410,-282.58799711,0.00017534,2]
[384822193,1757573446420,-157.0,0.00017534,2]
[384822194,1757573446431,-186.0,0.00017534,2]
[384822195,1757573446442,-180.0,0.00017534,2]
[384822196,1757573446455,-302.0,0.00017534,2]
[384822197,1757573446468,-500.0,0.00017534,2]
[384822198,1757573446482,-268.65618874,0.00017534,2]
[384822199,1757573446492,-480.0,0.00017534,2]
[384822200,1757573446503,-556.7,0.00017534,2]
[384822202,1757573446514,-503.17,0.00017534,2]
[384822205,1757573446527,-480.0,0.00017534,2]
[384822206,1757573446538,-2202.37,0.00017534,2]
[384822207,1757573446549,-480.0,0.00017534,2]
[384822208,1757573446559,-2070.44,0.00017534,2]
[384822209,1757573446570,-1516.77,0.00017534,2]
[384822210,1757573446580,-1674.47,0.00017534,2]
[384822211,1757573446591,-560.0,0.00017732,2]
[384822212,1757573446602,-180.91168149,0.00017808,2]
[384822213,1757573446613,-164.73189402,0.00017808,2]
[384822214,1757573446624,-500.0,0.00017808,2]
[384822215,1757573446635,-157.0,0.00017808,2]
[384822216,1757573446645,-186.0,0.00017808,2]
[384822217,1757573446657,-500.0,0.00017808,2]
[384822218,1757573446668,-480.0,0.00017808,2]
[384822219,1757573446679,-556.7,0.00017808,2]
[384822220,1757573446689,-503.17,0.00017808,2]
[384822221,1757573446700,-480.0,0.00017808,2]
[384822222,1757573446712,-2202.37,0.00017808,2]
[384822223,1757573446723,-480.0,0.00017808,2]
[384822224,1757573446733,-169.558092,0.00017808,2]
[384822225,1757573446744,-169.558092,0.00017808,2]
[384822226,1757573446755,-169.558092,0.00017808,2]
[384822230,1757573446766,-151.0,0.00017808,2]
[384822233,1757573446777,-169.558092,0.00017808,2]
[384822236,1757573446789,-151.318523,0.00017808,2]
[384822240,1757573446800,-151.0,0.00017808,2]
[384822243,1757573446811,-156.038527,0.00017808,2]
[384822245,1757573446822,-156.038527,0.00017808,2]
[384822247,1757573446834,-156.038527,0.00017808,2]
[384822252,1757573446845,-156.038527,0.00017808,2]
[384822255,1757573446857,-151.0,0.00017808,2]
[384822258,1757573446868,-151.0,0.00017808,2]
[384822261,1757573446879,-151.0,0.00017808,2]
[384822264,1757573446890,-151.0,0.00017808,2]
[384822268,1757573446900,-2070.44,0.00017808,2]
[384822271,1757573446911,-251.074136,0.00017808,2]
[384822273,1757573446922,-1516.77,0.00017808,2]
[384822275,1757573446933,-1674.47,0.00017808,2]
[384822277,1757573446944,-612.42100097,0.00017883,2]
[384822280,1757573446955,-9396.75705544,0.00017949,2]
[384822282,1757573446966,-823.0,0.00018026,2]
[384822284,1757573446977,-348.0,0.00018035,2]
[384822286,1757573446989,-186.0,0.00018082,2]
[384822289,1757573447000,-157.0,0.00018082,2]
[384822291,1757573447011,-532.5590871,0.00018082,2]
[384822293,1757573447022,-480.0,0.00018082,2]
[384822295,1757573447033,-556.7,0.00018082,2]
[384822297,1757573447044,-503.17,0.00018082,2]
[384822299,1757573447056,-480.0,0.00018082,2]
[384822300,1757573447067,-2202.37,0.00018082,2]
[384822301,1757573447079,-480.0,0.00018082,2]
[384822303,1757573447090,-2070.44,0.00018082,2]
[384822305,1757573447099,-1516.77,0.00018082,2]
[384822307,1757573447108,-1674.47,0.00018082,2]
[384822308,1757573447117,-250.0,0.00018097,2]
[384822310,1757573447127,-660.0,0.0001828,2]
[384822311,1757573447262,-161.7241878,0.00018301,2]
[384822312,1757573447278,-500.0,0.00018311,2]
[384822313,1757573447290,-186.0,0.00018356,2]
[384822314,1757573447299,-480.0,0.00018356,2]
[384822315,1757573447309,-556.7,0.00018356,2]
[384822316,1757573447319,-503.17,0.00018356,2]
[384822317,1757573447329,-480.0,0.00018356,2]
[384822318,1757573447339,-2202.37,0.00018356,2]
[384822319,1757573447348,-480.0,0.00018356,2]
[384822320,1757573447357,-2070.44,0.00018356,2]
[384822321,1757573447368,-1516.77,0.00018356,2]
[384822322,1757573447377,-1674.47,0.00018356,2]
[384822323,1757573447387,-161.7241878,0.00018356,2]
[384822324,1757573447397,-151.0,0.000184,2]
[384822325,1757573447406,-151.0,0.000184,2]
[384822326,1757573447415,-151.0,0.00018403,2]
[384822327,1757573447424,-151.0,0.00018403,2]
[384822328,1757573447433,-151.954609,0.00018403,2]
[384822329,1757573447442,-151.0,0.00018403,2]
[384822330,1757573447452,-151.0,0.00018403,2]
[384822331,1757573447461,-151.0,0.00018403,2]
[384822332,1757573447470,-151.0,0.00018403,2]
[384822333,1757573447479,-151.0,0.00018403,2]
[384822334,1757573447489,-151.0,0.00018403,2]
[384822335,1757573447497,-151.0,0.00018403,2]
[384822336,1757573447507,-186.631144,0.00018403,2]
[384822337,1757573447518,-151.753326,0.00018403,2]
[384822338,1757573447528,-151.0,0.00018403,2]
[384822339,1757573447538,-151.0,0.00018403,2]
[384822340,1757573447547,-151.0,0.00018403,2]
[384822341,1757573447556,-151.0,0.00018403,2]
[384822342,1757573447565,-221.496823,0.00018493,2]
[384822343,1757573447574,-3000.0,0.0001852,2]
[384822344,1757573447584,-480.0,0.0001863,2]
[384822345,1757573447593,-556.7,0.0001863,2]
[384822346,1757573447603,-503.17,0.0001863,2]
[384822347,1757573447614,-629.56597188,0.0001863,2]
[384822348,1757573447623,-2202.37,0.0001863,2]
[384822349,1757573447634,-480.0,0.0001863,2]
[384822350,1757573447645,-2070.44,0.0001863,2]
[384822351,1757573447655,-1516.77,0.0001863,2]
[384822352,1757573447664,-1674.47,0.0001863,2]
[384822353,1757573447673,-153.0,0.00018795,2]
[384822354,1757573447683,-153.0,0.00018795,2]
[384822355,1757573447692,-153.0,0.00018795,2]
[384822356,1757573447701,-153.0,0.00018795,2]
[384822357,1757573447710,-246.05865254,0.00018828,2]
[384822358,1757573447720,-303.1212394,0.000189,2]
[384822359,1757573447729,-480.0,0.00018904,2]
[384822360,1757573447738,-556.7,0.00018904,2]
[384822361,1757573447747,-503.17,0.00018904,2]
[384822362,1757573447757,-2202.37,0.00018904,2]
[384822363,1757573447766,-480.0,0.00018904,2]
[384822364,1757573447775,-2070.44,0.00018904,2]
[384822365,1757573447785,-1516.77,0.00018904,2]
[384822366,1757573447795,-1674.47,0.00018904,2]
[384822367,1757573447804,-3537.4572879,0.00019038,2]
[384822368,1757573447813,-2750.21709188,0.00019038,2]
[384822369,1757573447823,-28734.88701722,0.00019063,7]
[384822370,1757573447915,-8300.85141343,0.00019063,7]
[384822371,1757573447947,-2841.42081428,0.00019063,7]
[384822372,1757573447956,-151.0,0.00019063,2]
[384822373,1757573447965,-151.0,0.00019063,2]
[384822374,1757573447974,-151.0,0.00019063,2]
[384822375,1757573447984,-151.0,0.00019063,2]
[384822376,1757573447993,-151.0,0.00019063,2]
[384822377,1757573448003,-151.0,0.00019063,2]
[384822378,1757573448012,-151.0,0.00019063,2]
[384822379,1757573448021,-151.0,0.00019063,2]
[384822380,1757573448031,-151.769139,0.00019063,2]
[384822381,1757573448040,-151.0,0.00019063,2]
[384822382,1757573448049,-152.084447,0.00019063,2]
[384822383,1757573448059,-417.15472785,0.0001907,7]
[384822384,1757573448068,-530.95967032,0.0001907,7]
[384822385,1757573448078,-303.1212394,0.00019089,2]
[384822386,1757573448090,-6835.19227878,0.000191,7]
[384822387,1757573448104,-3748.09475813,0.000191,7]
[384822388,1757573448114,-151.0,0.000191,2]
[384822389,1757573448123,-151.0,0.000191,2]
[384822390,1757573448133,-417.15472785,0.000191,7]
[384822391,1757573448142,-530.95967032,0.000191,7]
[384822392,1757573448152,-480.0,0.00019178,2]
[384822393,1757573448161,-151.0,0.00019178,2]
[384822394,1757573448170,-151.0,0.00019178,2]
[384822395,1757573448180,-151.0,0.00019178,2]
[384822396,1757573448189,-151.0,0.00019178,2]
[384822397,1757573448199,-556.7,0.00019178,2]
[384822398,1757573448209,-503.17,0.00019178,2]
[384822399,1757573448220,-215.82688,0.00019178,2]
[384822400,1757573448229,-151.0,0.00019178,2]
[384822401,1757573448239,-151.0,0.00019178,2]
[384822402,1757573448249,-2202.37,0.00019178,2]
[384822403,1757573448259,-503.078166,0.00019178,2]
[384822404,1757573448269,-503.078166,0.00019178,2]
[384822405,1757573448280,-503.078166,0.00019178,2]
[384822406,1757573448290,-503.078166,0.00019178,2]
[384822407,1757573448301,-480.0,0.00019178,2]
[384822408,1757573448310,-2070.44,0.00019178,2]
[384822409,1757573448320,-1516.77,0.00019178,2]
[384822410,1757573448331,-1674.47,0.00019178,2]
[384822411,1757573448341,-5000.0,0.00019178,2]
[384822412,1757573448350,-5000.0,0.00019178,2]
[384822413,1757573448360,-166.877282,0.00019265,2]
[384822414,1757573448370,-303.1212394,0.00019278,2]
[384822415,1757573448379,-151.0,0.000193,2]
[384822416,1757573448389,-160.0,0.00019311,3]
[384822417,1757573448398,-500.0,0.00019372,2]
[384822418,1757573448408,-500.0,0.00019372,2]
[384822419,1757573448418,-404.95165325,0.00019452,2]
[384822420,1757573448427,-556.7,0.00019452,2]
[384822421,1757573448437,-503.17,0.00019452,2]
[384822422,1757573448446,-2202.37,0.00019452,2]
[384822423,1757573448456,-232.74217035,0.00019452,2]
[384822424,1757573448466,-2070.44,0.00019452,2]
[384822425,1757573448476,-1516.77,0.00019452,2]
[384822426,1757573448485,-1674.47,0.00019452,2]
[384822427,1757573448496,-303.1212394,0.00019467,2]
[384822428,1757573448505,-160.0,0.00019585,4]
[384822429,1757573448514,-3000.0,0.00019616,2]
[384822430,1757573448524,-303.1212394,0.00019656,2]
[384822431,1757573448533,-151.0,0.000197,2]
[384822432,1757573448543,-556.7,0.00019726,2]
[384822433,1757573448552,-503.17,0.00019726,2]
[384822434,1757573448562,-2202.37,0.00019726,2]
[384822435,1757573448572,-2070.44,0.00019726,2]
[384822436,1757573448581,-1516.77,0.00019726,2]
[384822437,1757573448591,-1674.47,0.00019726,2]
[384822438,1757573448600,-1152.0,0.00019755,2]
[384822439,1757573448610,-454.6818591,0.00019845,4]
[384822440,1757573448619,-160.0,0.00019858,5]
[384822441,1757573448628,-13392.92770213,0.000199,2]
[384822442,1757573448638,-623.03441846,0.0001992,2]
[384822443,1757573448648,-1000.0,0.0001992,2]
[384822444,1757573448658,-61976.73025423,0.00019998,2]
[384822445,1757573448732,-519.48394604,0.00013698,2]
[384822446,1757573448799,-39504.46898181,0.00013698,2]
[384822447,1757573448810,-301.53925213,0.00013698,2]
[384822448,1757573448901,168.0,0.00013561,2]
[384822449,1757573448970,408.508824,0.00024,30]
[384822450,1757573448990,-1304.30601483,0.00013698,2]
[384822451,1757573449001,-8370.20180519,0.00013698,2]
[384822452,1757573449010,-480.0,0.00015068,2]
[384822453,1757573449020,-480.0,0.00015342,2]
[384822454,1757573449029,-160.0,0.0001907,7]
[384822455,1757573449038,-628.01864136,0.00019998,2]
[384822456,1757573450486,-1115.71421841,0.00019998,2]
[384822460,1757573529909,8437.07757941,0.00013598,2]
[384822461,1757573529991,10000.01,0.00013598,2]
[384822462,1757573530062,10000.01,0.00013598,2]
[384822463,1757573530122,6096.90242059,0.00013598,2]
[384822464,1757573536170,-300.0,0.00013696,2]
[384822465,1757573536235,-500.0,0.00013697,2]
[384822466,1757573536304,-500.0,0.00013697,2]
[384822467,1757573536366,-617.07049885,0.00013697,2]
[384822468,1757573536426,-500.0,0.00013697,2]
[384822469,1757573536488,-500.0,0.00013697,2]
[384822470,1757573536552,-450.0,0.00013697,2]
[384822471,1757573536618,-500.0,0.00013697,2]
[384822472,1757573536680,-500.0,0.00013697,2]
[384822473,1757573536743,-500.0,0.00013697,2]
[384822474,1757573538383,1000.0,0.00018594,20]
[384822479,1757573706525,-808.22393895,0.00013424,2]
[384822480,1757573706595,-1800.0,0.0001356,2]
[384822481,1757573706666,-178.0,0.00013597,2]
[384822482,1757573706736,-382.76312565,0.00013598,2]
[384822483,1757573762687,300.0,0.00013597,2]
[384822488,1757573793654,1274.1435192,0.00012981,2]
[384822489,1757573797039,500.0,0.00013597,2]
[384822490,1757573797112,500.0,0.00013597,2]
[384822491,1757573797184,500.0,0.00013597,2]
[384822492,1757573797268,333.70499562,0.00013597,2]
[384822493,1757573797360,254.18735598,0.00013597,2]
[384822494,1757573797439,245.81264402,0.00013597,2]
[384822495,1757573797675,500.0,0.00013597,2]
[384822496,1757573797761,500.0,0.00013597,2]
[384822497,1757573797839,500.0,0.00013597,2]
[384822498,1757573797922,500.0,0.00013597,2]
[384822499,1757573798000,500.0,0.00013597,2]
[384822500,1757573798079,500.0,0.00013597,2]
[384822501,1757573798155,500.0,0.00013597,2]
[384822502,1757573798231,500.0,0.00013597,2]
[384822503,1757573798309,500.0,0.00013597,2]
[384822504,1757573798384,500.0,0.00013597,2]
[384822505,1757573823362,300.0,0.00013597,2]
[384822506,1757573832212,1015.0,0.00013597,2]
[384822507,1757573883042,300.0,0.00013597,2]
[384822508,1757573942675,300.0,0.00013597,2]
[384822509,1757573955230,1687.25257849,0.00013462,2]
[384822510,1757573964333,1151.94477749,0.00013462,2]
[384822511,1757573964411,535.307801,0.00013462,2]
[384822512,1757573974936,488.02298516,0.00013597,2]
[384822514,1757573982730,153.38377271,0.00013462,2]
[384822515,1757574002522,300.0,0.00013597,2]
[384822516,1757574062944,300.0,0.00013597,2]
[384822517,1757574106551,398.359689,0.00024,30]
[384822525,1757574223773,172.35843111,0.00013597,2]
[384822526,1757574236298,8050.93701002,0.00012848,2]
[384822527,1757574236352,10000.01,0.00012848,2]
[384822528,1757574236408,10000.01,0.00012848,2]
[384822529,1757574236440,40682.06397758,0.00012848,2]
[384822530,1757574242029,604.37,0.00012329,2]
[384822531,1757574243731,3572.61622729,0.00017,7]
[384822532,1757574252446,604.37,0.00012329,2]
[384822533,1757574252823,3702.84067533,0.00017,7]
[384822534,1757574254083,500.0,0.00013597,2]
[384822535,1757574257478,427.02011205,0.00013597,2]
[384822536,1757574262872,1056.14,0.00012329,2]
[384822537,1757574262910,5000.0,0.00017,7]
[384822539,1757574273287,880.12,0.00012329,2]
[384822540,1757574289829,563.09363378,0.00013462,2]
[384822541,1757574294353,733.43,0.00012329,2]
[384822542,1757574305783,611.19,0.00012329,2]
[384822543,1757574310668,375.9531472,0.00027397,120]
[384822544,1757574316183,509.33,0.00012329,2]
[384822545,1757574325690,375.39678123,0.00013498,2]
[384822546,1757574326564,424.44,0.00012329,2]
[384822547,1757574336982,353.7,0.00012329,2]
[384822548,1757574347389,294.75,0.00012329,2]
[384822549,1757574358024,245.63,0.00012329,2]
[384822550,1757574368472,204.69,0.00012329,2]
[384822551,1757574379092,170.57,0.00012329,2]
[384822552,1757574389520,852.89,0.00012329,2]
[384822558,1757574395428,231.27812,0.0001319,2]
[384822559,1757574395786,486.22159174,0.00013287,2]
[384822560,1757574403367,300.0,0.00013462,2]
[384822565,1757574528988,1466.2933007,0.00012848,2]
[384822566,1757574544070,373.642598,0.00013597,2]
[384822667,1757574638165,-37845.732988,0.00013598,2]
[384822668,1757574638175,-232.01860917,0.00013697,2]
[384822669,1757574638184,-480.0,0.00013698,2]
[384822670,1757574638193,-500.0,0.00013698,2]
[384822671,1757574638202,-460.0,0.00013698,2]
[384822672,1757574638211,-281.66542439,0.00013698,2]
[384822673,1757574638220,-480.0,0.00013698,2]
[384822674,1757574638229,-481.01703024,0.00013698,2]
[384822675,1757574638238,-480.0,0.00013698,2]
[384822676,1757574638247,-480.0,0.00013698,2]
[384822677,1757574638256,-480.0,0.00013698,2]
[384822678,1757574638266,-480.0,0.00013698,2]
[384822679,1757574638275,-1008.22428736,0.00013698,2]
[384822680,1757574638284,-480.0,0.00013698,2]
[384822681,1757574638293,-480.0,0.00013698,2]
[384822682,1757574638302,-480.0,0.00013698,2]
[384822683,1757574638312,-481.97441028,0.00013698,2]
[384822684,1757574638321,-481.1706256,0.00013698,2]
[384822685,1757574638330,-480.0,0.00013698,2]
[384822686,1757574638339,-480.0,0.00013698,2]
[384822687,1757574638348,-374.94673764,0.00013698,2]
[384822688,1757574638357,-480.0,0.00013698,2]
[384822689,1757574638366,-480.0,0.00013698,2]
[384822690,1757574638375,-482.51889707,0.00013698,2]
[384822691,1757574638384,-480.0,0.00013698,2]
[384822692,1757574638393,-480.0,0.00013698,2]
[384822693,1757574638402,-500.0,0.00013698,2]
[384822694,1757574638412,-500.0,0.00013698,2]
[384822695,1757574638421,-500.0,0.00013698,2]
[384822696,1757574638430,-500.0,0.00013698,2]
[384822697,1757574638439,-500.0,0.00013698,2]
[384822698,1757574638448,-586.13994033,0.00013698,2]
[384822699,1757574638458,-480.0,0.00013698,2]
[384822700,1757574638468,-480.0,0.00013698,2]
[384822701,1757574638477,-480.0,0.00013698,2]
[384822702,1757574638486,-480.0,0.00013698,2]
[384822703,1757574638495,-483.7956266,0.00013698,2]
[384822704,1757574638503,-480.0,0.00013698,2]
[384822705,1757574638512,-480.0,0.00013698,2]
[384822706,1757574638521,-480.0,0.00013698,2]
[384822707,1757574638530,-480.0,0.00013698,2]
[384822708,1757574638539,-480.0,0.00013698,2]
[384822709,1757574638548,-480.0,0.00013698,2]
[384822710,1757574638557,-480.49916385,0.00013698,2]
[384822711,1757574638566,-484.68213745,0.00013698,2]
[384822712,1757574638575,-488.8695104,0.00013698,2]
[384822713,1757574638584,-489.26283802,0.00013698,2]
[384822714,1757574638593,-482.66156575,0.00013698,2]
[384822715,1757574638602,-485.30595372,0.00013698,2]
[384822716,1757574638611,-480.0,0.00013698,2]
[384822717,1757574638620,-480.0,0.00013698,2]
[384822718,1757574638629,-266.79629815,0.00013698,2]
[384822719,1757574638638,-480.0,0.00013698,2]
[384822720,1757574638647,-484.82629729,0.00013698,2]
[384822721,1757574638656,-480.0,0.00013698,2]
[384822722,1757574638666,-480.0,0.00013698,2]
[384822723,1757574638683,-255.80737919,0.00013698,2]
[384822724,1757574638698,-485.72685461,0.00013698,2]
[384822725,1757574638710,-480.0,0.00013698,2]
[384822726,1757574638719,-480.0,0.00013698,2]
[384822727,1757574638730,-485.16218262,0.00013698,2]
[384822728,1757574638740,-480.0,0.00013698,2]
[384822729,1757574638750,-484.9879967,0.00013698,2]
[384822730,1757574638760,-480.0,0.00013698,2]
[384822731,1757574638774,-480.0,0.00013698,2]
[384822732,1757574638783,-484.4678702,0.00013698,2]
[384822733,1757574638792,-480.0,0.00013698,2]
[384822734,1757574638802,-480.0,0.00013698,2]
[384822735,1757574638812,-480.0,0.00013698,2]
[384822736,1757574638822,-488.08484366,0.00013698,2]
[384822737,1757574638832,-484.52294634,0.00013698,2]
[384822738,1757574638842,-480.0,0.00013698,2]
[384822739,1757574638852,-221.26087546,0.00013698,2]
[384822740,1757574638861,-257.19057976,0.00013698,2]
[384822741,1757574638872,-480.0,0.00013698,2]
[384822742,1757574638882,-480.0,0.00013698,2]
[384822743,1757574638891,-480.0,0.00013698,2]
[384822744,1757574638901,-609.07107543,0.00013698,2]
[384822745,1757574638911,-480.0,0.00013698,2]
[384822746,1757574638922,-455.44626382,0.00013698,2]
[384822747,1757574638932,-484.9327965,0.00013698,2]
[384822748,1757574638941,-490.93786279,0.00013698,2]
[384822749,1757574638951,-480.0,0.00013698,2]
[384822750,1757574638962,-480.0,0.00013698,2]
[384822751,1757574638972,-480.0,0.00013698,2]
[384822752,1757574638983,-480.0,0.00013698,2]
[384822753,1757574638996,-488.92,0.00013698,2]
[384822754,1757574639005,-433.04446702,0.00013698,2]
[384822755,1757574639016,-480.0,0.00013698,2]
[384822756,1757574639026,-485.37773383,0.00013698,2]
[384822757,1757574639035,-540.41864426,0.00013698,2]
[384822758,1757574639045,-480.0,0.00013698,2]
[384822759,1757574639054,-480.0,0.00013698,2]
[384822760,1757574639064,-480.0,0.00013698,2]
[384822761,1757574639073,-480.0,0.00013698,2]
[384822762,1757574639083,-480.0,0.00013698,2]
[384822763,1757574639092,-489.35930241,0.00013698,2]
[384822764,1757574639102,-480.0,0.00013698,2]
[384822765,1757574639112,-480.0,0.00013698,2]
[384822766,1757574639121,-480.0,0.00013698,2]
[384822767,1757574639131,-482.88578667,0.00013698,2]
[384822768,1757574639141,-532.19230351,0.00013698,2]
[384822769,1757574639151,-480.0,0.00013698,2]
[384822770,1757574639162,-484.03093063,0.00013698,2]
[384822771,1757574639171,-431.80786942,0.00013698,2]
[384822772,1757574639181,-486.9194041,0.00013698,2]
[384822773,1757574639191,-480.0,0.00013698,2]
[384822774,1757574639201,-480.0,0.00013698,2]
[384822775,1757574639211,-480.0,0.00013698,2]
[384822776,1757574639221,-480.0,0.00013698,2]
[384822777,1757574639231,-421.37776041,0.00013698,2]
[384822778,1757574639241,-480.0,0.00013698,2]
[384822779,1757574639251,-480.0,0.00013698,2]
[384822780,1757574639261,-480.0,0.00013698,2]
[384822781,1757574639271,-447.57696599,0.00013698,2]
[384822782,1757574639280,-480.0,0.00013698,2]
[384822783,1757574639290,-482.52917484,0.00013698,2]
[384822784,1757574639300,-480.0,0.00013698,2]
[384822785,1757574639310,-495.17750735,0.00013698,2]
[384822786,1757574639320,-480.0,0.00013698,2]
[384822787,1757574639330,-480.0,0.00013698,2]
[384822788,1757574639340,-485.99905255,0.00013698,2]
[384822789,1757574639349,-480.0,0.00013698,2]